bitfinex-derivatives/quotes_BTCF0:USTF0_20250924
["timestamp","ask_amount","ask_price","bid_price","bid_amount"]
[1758682900341,1.69183114,112160.0,112150.0,0.08056493]
[1758682900641,1.91235894,112160.0,112150.0,0.08056493]
[1758682901136,1.91235894,112160.0,112150.0,0.08016493]
[1758682901340,1.91235894,112160.0,112150.0,0.08056493]
[1758682905042,1.91235894,112160.0,112150.0,0.10363493]
[1758682905236,1.91235894,112160.0,112150.0,0.11714493]
[1758682907043,1.66039246,112160.0,112150.0,0.11714493]
[1758682907547,0.83159246,112160.0,112150.0,0.11714493]
[1758682907738,1.65991246,112160.0,112150.0,0.11714493]
[1758682907939,1.65991246,112160.0,112150.0,0.03698]
[1758682908346,0.83159246,112160.0,112150.0,0.03698]
[1758682908650,1.65947246,112160.0,112150.0,0.11714493]
[1758682908846,0.38167086,112160.0,112150.0,0.51714493]
[1758682909042,0.95798438,112160.0,112150.0,0.43698]
[1758682909348,0.95790438,112160.0,112150.0,0.5261096]
[1758682909749,0.12970438,112160.0,112150.0,0.5261096]
[1758682909949,0.95790438,112160.0,112150.0,0.5261096]
[1758682910154,1.20987086,112160.0,112150.0,0.5261096]
[1758682910841,1.20979086,112160.0,112150.0,0.5261096]
[1758682911350,1.20979086,112160.0,112150.0,0.43698]
[1758682911550,1.20939086,112160.0,112150.0,0.43698]
[1758682911851,0.95782438,112160.0,112150.0,0.5261096]
[1758682912050,0.12970438,112160.0,112150.0,0.99913314]
[1758682912250,0.03148225,112160.0,112150.0,1.25109962]
[1758682912549,0.85992225,112160.0,112150.0,1.13887608]
[1758682912747,0.87659016,112160.0,112150.0,1.13887608]
[1758682912940,0.04855016,112160.0,112150.0,1.29836233]
[1758682913137,0.04895016,112160.0,112150.0,1.29836233]
[1758682913341,0.77263016,112160.0,112150.0,1.29836233]
[1758682913949,0.04895016,112160.0,112150.0,1.29836233]
[1758682914245,0.0891107,112180.0,112170.0,0.03618]
[1758682914448,0.65900166,112180.0,112170.0,0.14827255]
[1758682914646,0.65820166,112180.0,112170.0,0.14827255]
[1758682914845,0.65860166,112180.0,112170.0,0.14827255]
[1758682915248,0.91056814,112180.0,112170.0,0.14827255]
[1758682915640,0.91056814,112180.0,112170.0,0.03618]
[1758682916247,0.91456814,112180.0,112170.0,0.03618]
[1758682917351,0.0891137,112170.0,112160.0,0.11622148]
[1758682917656,0.70188018,112170.0,112160.0,0.11620111]
[1758682917859,0.70188018,112170.0,112160.0,0.11660111]
[1758682918045,0.70188018,112170.0,112160.0,0.03658]
[1758682918245,0.70188018,112170.0,112160.0,0.03618]
[1758682918454,0.70188018,112170.0,112160.0,0.03658]
[1758682919141,0.70188018,112170.0,112160.0,0.04458]
[1758682919952,0.70388018,112170.0,112160.0,0.04458]
[1758682921057,0.61476648,112170.0,112160.0,0.04458]
[1758682921853,0.70388038,112170.0,112160.0,0.04458]
[1758682922749,0.70388038,112170.0,112160.0,0.12459285]
[1758682923648,1.53132038,112170.0,112160.0,0.12459285]
[1758682923848,1.08140648,112170.0,112160.0,0.21371475]
[1758682924351,1.08124648,112170.0,112160.0,0.21371475]
[1758682924654,1.08124648,112170.0,112160.0,0.12459285]
[1758682924856,1.17036038,112170.0,112160.0,0.12459285]
[1758682927353,0.34308038,112170.0,112160.0,0.12459285]
[1758682927559,1.17024038,112170.0,112160.0,0.12459285]
[1758682928264,1.53104038,112170.0,112160.0,0.12459285]
[1758682928461,1.53104038,112170.0,112160.0,0.04458]
[1758682931260,1.53104038,112170.0,112160.0,0.0222]
[1758682931461,1.6790739,112170.0,112160.0,0.0084]
[1758682931671,1.93104038,112170.0,112160.0,0.008]
[1758682931864,1.93104038,112170.0,112160.0,0.0084]
[1758682932770,1.93104038,112170.0,112160.0,0.08841285]
[1758682932973,2.18310686,112170.0,112160.0,0.08841285]
[1758682933164,2.18310686,112170.0,112160.0,0.008]
[1758682933366,2.18310686,112170.0,112160.0,0.0084]
[1758682933571,2.18310686,112170.0,112160.0,0.08801285]
[1758682933773,2.18310686,112170.0,112160.0,0.08841285]
[1758682934871,0.0891218,112160.0,112150.0,0.0001]
[1758682935066,0.0891298,112150.0,112140.0,0.0001]
[1758682935273,0.0891377,112140.0,112130.0,0.14915255]
[1758682935564,0.34120418,112140.0,112130.0,0.14985255]
[1758682935766,0.34120418,112140.0,112130.0,0.14905255]
[1758682935972,0.34120418,112140.0,112130.0,0.14945255]
[1758682936276,0.41265766,112140.0,112130.0,0.03736]
[1758682936971,0.41265766,112140.0,112130.0,0.14945255]
[1758682937275,0.40765766,112140.0,112130.0,0.03736]
[1758682937871,0.41965766,112140.0,112130.0,0.03736]
[1758682938473,1.24633766,112140.0,112130.0,0.03936]
[1758682938674,1.24673766,112140.0,112130.0,0.03936]
[1758682938874,0.42005766,112140.0,112130.0,0.03936]
[1758682939073,1.24621766,112140.0,112130.0,0.03936]
[1758682939273,1.24661766,112140.0,112130.0,0.03936]
[1758682939763,0.42405766,112140.0,112130.0,0.03736]
[1758682939969,0.99861118,112140.0,112130.0,0.03736]
[1758682940169,1.25057766,112140.0,112130.0,0.03736]
[1758682940667,1.25057766,112140.0,112130.0,0.8873057]
[1758682940668,0.08795348,112140.0,112130.0,0.8873057]
[1758682940879,0.0165,112140.0,112130.0,1.25136473]
[1758682941178,0.0161,112140.0,112130.0,1.5000292]
[1758682941368,0.84298,112140.0,112130.0,1.38793665]
[1758682941777,0.84258,112140.0,112130.0,1.38793665]
[1758682941978,0.84298,112140.0,112130.0,1.38793665]
[1758682942182,0.0161,112140.0,112130.0,1.48377028]
[1758682942476,0.29049495,112140.0,112130.0,1.48377028]
[1758682942686,0.0891249,112160.0,112150.0,0.1238398]
[1758682942978,0.9155249,112160.0,112150.0,0.59651655]
[1758682943177,0.9163249,112160.0,112150.0,0.59651655]
[1758682943379,0.8264,112160.0,112150.0,0.59651655]
[1758682943573,0.8268,112160.0,112150.0,0.59651655]
[1758682943875,0.0004,112160.0,112150.0,1.33764535]
[1758682944080,0.32788,112160.0,112150.0,1.68320105]
[1758682944273,0.32748,112160.0,112150.0,1.795046]
[1758682944574,0.34548,112160.0,112150.0,1.795046]
[1758682944775,0.34588,112160.0,112150.0,1.795046]
[1758682945175,0.35188,112160.0,112150.0,1.795046]
[1758682945375,0.33388,112160.0,112150.0,1.81217284]
[1758682945577,0.33388,112160.0,112150.0,1.81717284]
[1758682945776,0.33388,112160.0,112150.0,1.800046]
[1758682945976,0.32788,112160.0,112150.0,1.800046]
[1758682946677,0.32788,112160.0,112150.0,1.81776719]
[1758682947073,0.32788,112160.0,112150.0,1.800046]
[1758682948079,0.0004,112160.0,112150.0,1.800046]
[1758682948281,0.0004,112160.0,112150.0,1.68820105]
[1758682950877,0.0004,112160.0,112150.0,1.800046]
[1758682953080,0.0004,112160.0,112150.0,1.68820105]
[1758682953282,0.0004,112160.0,112150.0,1.8476873]
[1758682955082,0.0895219,112160.0,112150.0,1.12173468]
[1758682955280,0.34148838,112160.0,112150.0,1.12173468]
[1758682955480,0.0895219,112160.0,112150.0,1.00992605]
[1758682955784,0.0004,112160.0,112150.0,0.8504398]
[1758682956273,0.7646,112160.0,112150.0,0.96224843]
[1758682956670,0.7646,112160.0,112150.0,0.8504398]
[1758682958677,0.0004,112160.0,112150.0,0.8504398]
[1758682958983,0.826,112160.0,112150.0,0.8504398]
[1758682959181,0.0004,112160.0,112150.0,1.1915686]
[1758682959376,0.69652,112160.0,112150.0,1.686097]
[1758682959572,0.69612,112160.0,112150.0,1.286097]
[1758682959778,0.72008664,112180.0,112170.0,0.1238239]
[1758682959977,1.54552664,112180.0,112170.0,0.1238239]
[1758682960282,1.54512664,112180.0,112170.0,0.03471]
[1758682960494,1.18432664,112180.0,112170.0,0.03471]
[1758682961684,1.19032664,112180.0,112170.0,0.03471]
[1758682961884,1.19042664,112180.0,112170.0,0.03471]
[1758682962381,1.19042664,112180.0,112170.0,0.11452536]
[1758682962582,1.22174224,112180.0,112170.0,0.11452536]
[1758682963085,1.22474224,112180.0,112170.0,0.11452536]
[1758682963586,0.94146016,112180.0,112170.0,0.11452536]
[1758682963777,1.22474224,112180.0,112170.0,0.11452536]
[1758682964485,1.22474224,112180.0,112170.0,0.47532536]
[1758682964684,1.22474224,112180.0,112170.0,0.56443926]
[1758682966179,0.39930224,112180.0,112170.0,0.56443926]
[1758682966384,1.22442224,112180.0,112170.0,0.56443926]
[1758682967185,1.22442224,112180.0,112170.0,0.47532536]
[1758682971386,1.22442224,112180.0,112170.0,0.39551]
[1758682973089,1.22442224,112180.0,112170.0,0.47561632]
[1758682973887,0.94114016,112180.0,112170.0,0.47561632]
[1758682974188,1.22442224,112180.0,112170.0,0.47561632]
[1758682974384,0.39930224,112180.0,112170.0,0.47561632]
[1758682974585,1.22402224,112180.0,112170.0,0.47561632]
[1758682974785,0.85163096,112180.0,112170.0,0.8480123]
[1758682974987,0.85163096,112180.0,112170.0,0.76790598]
[1758682975190,0.85123096,112180.0,112170.0,0.87971461]
[1758682975383,1.13491304,112180.0,112170.0,0.87971461]
[1758682975979,1.13483304,112180.0,112170.0,0.87971461]
[1758682976286,0.0095,112180.0,112170.0,1.66375126]
[1758682976491,0.3010847,112180.0,112170.0,1.62910185]
[1758682976688,0.3010847,112180.0,112170.0,1.51729322]
[1758682977089,0.3006847,112180.0,112170.0,1.51729322]
[1758682977294,0.3010847,112180.0,112170.0,1.51729322]
[1758682977688,0.67347278,112180.0,112170.0,1.62934724]
[1758682978190,0.67347278,112180.0,112170.0,1.46986099]
[1758682978394,0.37495278,112180.0,112170.0,1.46986099]
[1758682978593,1.19947278,112180.0,112170.0,1.46986099]
[1758682978996,1.19947278,112180.0,112170.0,0.96910642]
[1758682979794,1.19947278,112180.0,112170.0,0.60071044]
[1758682979994,1.19947278,112180.0,112170.0,0.97310642]
[1758682980196,1.19947278,112180.0,112170.0,0.96910642]
[1758682980392,1.19947278,112180.0,112170.0,0.52256402]
[1758682980698,1.19830808,112180.0,112170.0,0.52296402]
[1758682981900,0.090506,112180.0,112170.0,0.59707792]
[1758682982100,0.8258,112180.0,112170.0,0.77230598]
[1758682982300,0.82572,112180.0,112170.0,0.77230598]
[1758682982498,0.82572,112180.0,112170.0,0.88436]
[1758682983702,0.0014,112180.0,112170.0,0.88436]
[1758682983996,0.82564,112180.0,112170.0,0.88436]
[1758682984205,0.82564,112180.0,112170.0,0.77230598]
[1758682985206,0.0014,112180.0,112170.0,0.77230598]
[1758682985507,0.82564,112180.0,112170.0,0.77230598]
[1758682985700,0.0014,112180.0,112170.0,0.77230598]
[1758682985900,0.82556,112180.0,112170.0,0.77230598]
[1758682986704,0.0014,112180.0,112170.0,0.77230598]
[1758682986905,0.82552,112180.0,112170.0,0.77230598]
[1758682988009,0.0014,112180.0,112170.0,0.77230598]
[1758682988206,0.82548,112180.0,112170.0,0.77230598]
[1758682988404,0.0014,112180.0,112170.0,0.77230598]
[1758682988608,0.82544,112180.0,112170.0,0.77230598]
[1758682991114,0.0014,112180.0,112170.0,1.54473448]
[1758682991311,0.0008,112200.0,112190.0,0.125198]
[1758682991605,0.1282,112210.0,112200.0,0.1251901]
[1758682991812,0.1282,112210.0,112200.0,0.8810922]
[1758682992211,0.1282,112210.0,112200.0,0.76927218]
[1758682992608,0.1282,112210.0,112200.0,0.84910249]
[1758682992814,0.28408208,112220.0,112210.0,0.1251821]
[1758682993010,1.10792208,112220.0,112210.0,0.76926418]
[1758682993212,0.37235228,112230.0,112220.0,0.1251742]
[1758682993508,1.19615228,112230.0,112220.0,0.4859742]
[1758682993806,1.19695228,112230.0,112220.0,0.56580451]
[1758682994011,1.19615228,112230.0,112220.0,0.4859742]
[1758682994212,0.37275228,112230.0,112220.0,0.4859742]
[1758682994411,1.10740208,112230.0,112220.0,0.56570658]
[1758682994612,1.10700208,112230.0,112220.0,0.84898866]
[1758682994813,1.11540208,112230.0,112220.0,0.84898866]
[1758682995019,0.0084,112230.0,112220.0,0.84898866]
[1758682995312,0.83222,112230.0,112220.0,0.84898866]
[1758682995708,0.0085,112230.0,112220.0,0.84898866]
[1758682995907,0.8341,112230.0,112220.0,0.94167414]
[1758682996109,0.8337,112230.0,112220.0,0.86194176]
[1758682996312,0.0105,112230.0,112220.0,0.95104846]
[1758682996514,0.8341,112230.0,112220.0,0.95104846]
[1758682996713,0.8337,112230.0,112220.0,0.95104846]
[1758682996925,0.8341,112230.0,112220.0,0.95104846]
[1758682997315,0.8341,112230.0,112220.0,1.03062021]
[1758682997510,0.8341,112230.0,112220.0,0.95104846]
[1758682998325,0.8341,112230.0,112220.0,1.03059354]
[1758682999513,0.9231663,112230.0,112220.0,0.94151934]
[1758682999715,0.8341,112230.0,112220.0,1.03059354]
[1758683001214,1.20644838,112230.0,112220.0,1.03059354]
[1758683002522,1.11738208,112230.0,112220.0,1.03059354]
[1758683003139,0.8341,112230.0,112220.0,1.03059354]
[1758683003437,1.11738208,112230.0,112220.0,1.03059354]
[1758683004232,0.8341,112230.0,112220.0,1.03059354]
[1758683005435,0.8341,112230.0,112220.0,0.95104846]
[1758683005641,0.0105,112230.0,112220.0,0.95104846]
[1758683005840,0.83354,112230.0,112220.0,0.95104846]
[1758683006340,0.8335,112230.0,112220.0,0.95104846]
[1758683010037,0.0105,112230.0,112220.0,0.95104846]
[1758683010242,0.8333,112230.0,112220.0,0.95104846]
[1758683012332,0.0105,112230.0,112220.0,0.95104846]
[1758683012627,0.61614,112230.0,112220.0,0.95104846]
[1758683013436,0.83314,112230.0,112220.0,0.95104846]
[1758683013838,0.9222063,112230.0,112220.0,0.95104846]
[1758683014035,1.20548838,112230.0,112220.0,0.95104846]
[1758683014640,1.11642208,112230.0,112220.0,0.95104846]
[1758683017840,1.20548838,112230.0,112220.0,0.95104846]
[1758683018339,1.20548838,112230.0,112220.0,0.66776638]
[1758683018540,1.60548838,112230.0,112220.0,0.65820476]
[1758683018741,1.60548838,112230.0,112220.0,0.56551928]
[1758683019434,1.20548838,112230.0,112220.0,0.56551928]
[1758683021534,1.20548838,112230.0,112220.0,0.4859742]
[1758683022644,1.17378505,112230.0,112220.0,0.4859742]
[1758683024444,1.17378505,112230.0,112220.0,0.59779422]
[1758683025353,0.83314,112230.0,112220.0,0.59779422]
[1758683025646,0.83254,112230.0,112220.0,0.59779422]
[1758683028646,0.9216063,112230.0,112220.0,0.59779422]
[1758683029835,0.0105,112230.0,112220.0,0.84937297]
[1758683030041,0.83246,112230.0,112220.0,0.93847967]
[1758683030846,0.83246,112230.0,112220.0,0.82665965]
[1758683031546,0.9215263,112230.0,112220.0,0.4859742]
[1758683032550,0.0995663,112230.0,112220.0,0.4859742]
[1758683032847,0.9214463,112230.0,112220.0,0.4859742]
[1758683039962,0.9214463,112230.0,112220.0,0.64546045]
[1758683040757,0.9214463,112230.0,112220.0,0.4859742]
[1758683042959,1.57302505,112230.0,112220.0,0.4859742]
[1758683043858,1.3214463,112230.0,112220.0,0.4859742]
[1758683044059,1.48395875,112230.0,112220.0,0.4859742]
[1758683044561,1.23238,112230.0,112220.0,0.4859742]
[1758683044858,1.48395875,112230.0,112220.0,0.4859742]
[1758683045058,0.83238,112230.0,112220.0,0.4859742]
[1758683045254,0.83182,112230.0,112220.0,0.4859742]
[1758683046359,0.83182,112230.0,112220.0,0.64546045]
[1758683048163,0.83174,112230.0,112220.0,0.64546045]
[1758683049972,0.0105,112230.0,112220.0,0.64546045]
[1758683050271,0.83162,112230.0,112220.0,0.64546045]
[1758683052963,0.83162,112230.0,112220.0,0.4859742]
[1758683053866,0.83162,112230.0,112220.0,0.64601313]
[1758683055374,0.83142,112230.0,112220.0,0.64601313]
[1758683058981,0.82342,112230.0,112220.0,0.64601313]
[1758683059179,0.82342,112230.0,112220.0,0.65301313]
[1758683059980,0.65501272,112230.0,112220.0,0.65301313]
[1758683060879,0.65501272,112230.0,112220.0,0.4929742]
[1758683062379,0.34064215,112240.0,112230.0,0.1254163]
[1758683062572,1.16120215,112240.0,112230.0,0.64626937]
[1758683063869,1.16120215,112240.0,112230.0,0.64726937]
[1758683064074,1.16120215,112240.0,112230.0,0.4872163]
[1758683066286,1.07213875,112240.0,112230.0,0.4872163]
[1758683069487,1.07185875,112240.0,112230.0,0.4872163]
[1758683069785,1.52171705,112240.0,112230.0,0.01483]
[1758683070086,1.52171705,112240.0,112230.0,0.001]
[1758683070087,2.1732958,112240.0,112230.0,0.001]
[1758683071791,1.92171705,112240.0,112230.0,0.001]
[1758683072392,1.10143705,112240.0,112230.0,0.03735]
[1758683072593,1.3092183,112240.0,112230.0,0.1264163]
[1758683072793,0.73313673,112250.0,112240.0,0.01383]
[1758683073092,1.55325673,112250.0,112240.0,0.03635]
[1758683073301,1.55365673,112250.0,112240.0,0.03635]
[1758683073688,0.73353673,112250.0,112240.0,0.03635]
[1758683073891,1.55365673,112250.0,112240.0,0.03635]
[1758683074087,1.55865673,112250.0,112240.0,0.03635]
[1758683074299,1.19985673,112250.0,112240.0,0.39715]
[1758683074799,0.94827798,112250.0,112240.0,0.39715]
[1758683075000,1.19485673,112250.0,112240.0,0.39715]
[1758683075199,1.19485673,112250.0,112240.0,0.39815]
[1758683075700,1.19385673,112250.0,112240.0,0.39815]
[1758683077000,1.19373673,112250.0,112240.0,0.39815]
[1758683077799,1.95453673,112250.0,112240.0,0.001]
[1758683078097,1.95453673,112250.0,112240.0,0.03735]
[1758683078098,1.70295798,112250.0,112240.0,0.03735]
[1758683078295,1.13453673,112250.0,112240.0,0.03735]
[1758683078495,1.55445673,112250.0,112240.0,0.03735]
[1758683078801,0.73463673,112250.0,112240.0,0.03735]
[1758683079102,0.85268148,112250.0,112240.0,0.4872083]
[1758683079398,0.85308148,112250.0,112240.0,0.59926626]
[1758683079598,0.85308148,112250.0,112240.0,0.4872083]
[1758683083099,1.19371063,112250.0,112240.0,0.4872083]
[1758683084804,1.22504733,112250.0,112240.0,0.59899577]
[1758683086495,1.22504733,112250.0,112240.0,0.4872083]
[1758683087002,0.40516733,112250.0,112240.0,0.4872083]
[1758683087204,1.22472733,112250.0,112240.0,0.4872083]
[1758683087702,1.22472733,112250.0,112240.0,0.59899577]
[1758683089297,1.22472733,112250.0,112240.0,0.77012375]
[1758683090107,1.22472733,112250.0,112240.0,0.88191122]
[1758683090607,1.22472733,112250.0,112240.0,0.77012375]
[1758683093507,0.12225188,112250.0,112240.0,1.17012375]
[1758683093695,1.22444733,112250.0,112240.0,1.17012375]
[1758683094907,1.22444733,112250.0,112240.0,0.8872083]
[1758683095109,1.22444733,112250.0,112240.0,1.17512375]
[1758683096009,0.40516733,112250.0,112240.0,1.17512375]
[1758683096209,1.22444733,112250.0,112240.0,1.17512375]
[1758683096508,1.22344733,112250.0,112240.0,1.17612375]
[1758683099411,1.22344733,112250.0,112240.0,0.8932083]
[1758683099613,1.22344733,112250.0,112240.0,0.40415]
[1758683100408,1.22344733,112250.0,112240.0,0.4932083]
[1758683100711,1.22344733,112250.0,112240.0,0.4872083]
[1758683101914,1.22344733,112250.0,112240.0,0.4862083]
[1758683102214,1.22444733,112250.0,112240.0,0.59799577]
[1758683103218,1.22444733,112250.0,112240.0,0.50893747]
[1758683103407,1.22444733,112250.0,112240.0,0.39715]
[1758683103602,1.22444733,112250.0,112240.0,0.4862083]
[1758683104302,1.22444733,112250.0,112240.0,0.59799577]
[1758683105018,1.22444733,112250.0,112240.0,0.4862083]
[1758683105616,1.22444733,112250.0,112240.0,0.39715]
[1758683105812,0.0890583,112240.0,112230.0,0.12578587]
[1758683106117,0.73287375,112240.0,112230.0,0.1739128]
[1758683106316,1.13287375,112240.0,112230.0,0.1739128]
[1758683106617,1.13287375,112240.0,112230.0,0.1600828]
[1758683106618,1.4157892,112240.0,112230.0,0.1600828]
[1758683106816,1.4157892,112240.0,112230.0,0.27196915]
[1758683107016,1.4157892,112240.0,112230.0,0.11188635]
[1758683107917,1.4157892,112240.0,112230.0,0.11788635]
[1758683108420,1.4157892,112240.0,112230.0,0.11188635]
[1758683108619,1.4267892,112240.0,112230.0,0.11188635]
[1758683108820,1.4267892,112240.0,112230.0,0.11288635]
[1758683109218,1.4267892,112240.0,112230.0,0.001]
[1758683109622,0.0890663,112230.0,112220.0,0.11198635]
[1758683109823,1.8346372,112230.0,112220.0,0.11188635]
[1758683110819,1.8366372,112230.0,112220.0,0.11188635]
[1758683111224,1.8426372,112230.0,112220.0,0.11188635]
[1758683111615,2.2426372,112230.0,112220.0,0.11188635]
[1758683113728,0.0890742,112220.0,112210.0,0.12523635]
[1758683113919,0.73288965,112220.0,112210.0,0.12513635]
[1758683114323,0.0890821,112210.0,112200.0,0.01322]
[1758683114527,1.55157755,112210.0,112200.0,0.01312]
[1758683115729,1.55157755,112210.0,112200.0,0.03496]
[1758683116335,0.0890901,112200.0,112190.0,0.50774635]
[1758683116525,0.37210555,112200.0,112190.0,0.50764635]
[1758683116934,0.36510555,112200.0,112190.0,0.50764635]
[1758683117327,0.36510555,112200.0,112190.0,0.39576]
[1758683117528,0.36510555,112200.0,112190.0,0.40776]
[1758683117732,0.36510555,112200.0,112190.0,0.51964635]
[1758683118428,0.36510555,112200.0,112190.0,0.40776]
[1758683119630,0.648021,112200.0,112190.0,0.40776]
[1758683119936,1.408821,112200.0,112190.0,0.012]
[1758683120128,1.408821,112200.0,112190.0,0.014]
[1758683125826,1.408821,112200.0,112190.0,0.05022]
[1758683126629,0.36510555,112200.0,112190.0,0.05022]
[1758683126928,1.19062555,112200.0,112190.0,0.139318]
[1758683127133,1.19062555,112200.0,112190.0,0.500118]
[1758683127329,1.19062555,112200.0,112190.0,0.41102]
[1758683131841,0.37210555,112200.0,112190.0,0.41102]
[1758683132140,1.19094555,112200.0,112190.0,0.500118]
[1758683132541,0.37250555,112200.0,112190.0,0.500118]
[1758683132840,1.19082555,112200.0,112190.0,0.78303345]
[1758683134941,1.19082555,112200.0,112190.0,1.18303345]
[1758683135333,1.10173545,112200.0,112190.0,1.18303345]
[1758683135935,0.28341545,112200.0,112190.0,1.18303345]
[1758683136142,1.10169545,112200.0,112190.0,1.18303345]
[1758683136536,1.10165545,112200.0,112190.0,1.18303345]
[1758683136737,1.19074555,112200.0,112190.0,1.18303345]
[1758683137341,1.19074555,112200.0,112190.0,0.900118]
[1758683137952,0.37250555,112200.0,112190.0,0.900118]
[1758683138137,1.19074555,112200.0,112190.0,1.18303345]
[1758683139343,0.37250555,112200.0,112190.0,1.18303345]
[1758683139544,1.19070555,112200.0,112190.0,0.78303345]
[1758683139736,1.10161545,112200.0,112190.0,0.78303345]
[1758683139933,1.10161545,112200.0,112190.0,0.8949198]
[1758683140646,0.28341545,112200.0,112190.0,0.8949198]
[1758683140847,0.0005,112200.0,112190.0,1.38405033]
[1758683141041,0.81862,112200.0,112190.0,1.27216398]
[1758683141237,0.81822,112200.0,112190.0,1.27216398]
[1758683141439,0.81862,112200.0,112190.0,1.27216398]
[1758683141941,0.81862,112200.0,112190.0,0.87216398]
[1758683142148,0.81822,112200.0,112190.0,0.87216398]
[1758683142347,0.81862,112200.0,112190.0,0.87216398]
[1758683143250,1.10153545,112200.0,112190.0,0.87216398]
[1758683143753,0.28341545,112200.0,112190.0,0.87216398]
[1758683144056,1.10149545,112200.0,112190.0,0.98405033]
[1758683144255,0.8185,112200.0,112190.0,0.98405033]
[1758683144553,0.9075888,112200.0,112190.0,0.70113488]
[1758683146342,0.8185,112200.0,112190.0,0.70113488]
[1758683147851,0.0005,112200.0,112190.0,0.70113488]
[1758683148051,0.81838,112200.0,112190.0,0.70113488]
[1758683150755,0.0005,112200.0,112190.0,0.70113488]
[1758683150942,0.8183,112200.0,112190.0,0.70113488]
[1758683151142,0.81826,112200.0,112190.0,0.58924853]
[1758683152352,0.81826,112200.0,112190.0,0.84091866]
[1758683152854,0.0005,112200.0,112190.0,0.84091866]
[1758683153055,0.0005,112200.0,112190.0,0.9528208]
[1758683153254,0.81822,112200.0,112190.0,0.9528208]
[1758683153451,0.81822,112200.0,112190.0,0.84091866]
[1758683156255,0.81822,112200.0,112190.0,1.33733029]
[1758683157053,0.0005,112200.0,112190.0,1.33733029]
[1758683157250,0.8181,112200.0,112190.0,1.33733029]
[1758683157860,0.0005,112200.0,112190.0,1.33733029]
[1758683158064,0.81806,112200.0,112190.0,1.33733029]
[1758683158565,0.0005,112200.0,112190.0,1.33733029]
[1758683158862,0.64766,112200.0,112190.0,1.33733029]
[1758683159664,0.64726,112200.0,112190.0,1.33733029]
[1758683159866,0.64726,112200.0,112190.0,0.97653029]
[1758683160158,0.64766,112200.0,112190.0,1.69813029]
[1758683162871,0.64766,112200.0,112190.0,0.97653029]
[1758683163074,0.64766,112200.0,112190.0,1.69813029]
[1758683163471,0.64766,112200.0,112190.0,1.44646016]
[1758683163770,0.64766,112200.0,112190.0,1.69813029]
[1758683164174,0.64766,112200.0,112190.0,1.85821309]
[1758683164468,0.0005,112200.0,112190.0,1.85821309]
[1758683164660,0.0001,112200.0,112190.0,2.67557309]
[1758683164863,0.2402,112220.0,112210.0,0.1242319]
[1758683165064,0.2402,112220.0,112210.0,1.00558262]
[1758683166172,0.2452,112220.0,112210.0,1.00558262]
[1758683166971,0.82404,112220.0,112210.0,1.00558262]
[1758683167359,0.82404,112220.0,112210.0,0.8458319]
[1758683167568,0.82324,112220.0,112210.0,0.8458319]
[1758683167772,0.006,112220.0,112210.0,0.93494654]
[1758683168074,0.8232,112220.0,112210.0,0.93494654]
[1758683168259,0.8236,112220.0,112210.0,1.09469726]
[1758683168659,1.16434403,112220.0,112210.0,1.00558262]
[1758683168860,1.16394403,112220.0,112210.0,1.00558262]
[1758683169074,0.9126739,112220.0,112210.0,0.8458319]
[1758683169372,1.16434403,112220.0,112210.0,0.8458319]
[1758683169965,0.9126739,112220.0,112210.0,0.8458319]
[1758683171573,0.9126739,112220.0,112210.0,0.91788211]
[1758683172972,0.8236,112220.0,112210.0,0.91788211]
[1758683175875,0.9126736,112220.0,112210.0,0.91788211]
[1758683177280,0.0954736,112220.0,112210.0,0.91788211]
[1758683177579,0.9124336,112220.0,112210.0,0.91788211]
[1758683179282,0.0064,112220.0,112210.0,0.91788211]
[1758683179474,0.8232,112220.0,112210.0,0.91788211]
[1758683180878,0.8222,112220.0,112210.0,0.91788211]
[1758683181072,0.0054,112220.0,112210.0,0.91888211]
[1758683181275,0.8172,112220.0,112210.0,0.91888211]
[1758683181482,0.81716,112220.0,112210.0,0.91988211]
[1758683181978,0.0064,112220.0,112210.0,0.91788211]
[1758683182381,0.82312,112220.0,112210.0,0.91788211]
[1758683183282,0.0064,112220.0,112210.0,0.91788211]
[1758683183583,0.82308,112220.0,112210.0,0.91788211]
[1758683183775,0.81808,112220.0,112210.0,0.91788211]
[1758683183974,0.81808,112220.0,112210.0,0.91888211]
[1758683184478,0.81708,112220.0,112210.0,0.91988211]
[1758683184975,0.82208,112220.0,112210.0,0.91888211]
[1758683185285,0.82208,112220.0,112210.0,0.91788211]
[1758683185583,0.82308,112220.0,112210.0,0.91788211]
[1758683186482,0.9121545,112220.0,112210.0,0.91788211]
[1758683186673,0.9121545,112220.0,112210.0,1.07763283]
[1758683194788,0.9121545,112220.0,112210.0,0.91788211]
[1758683197192,0.9121545,112220.0,112210.0,1.00578193]
[1758683197580,1.16382463,112220.0,112210.0,1.00578193]
[1758683198794,1.16382463,112220.0,112210.0,0.8458319]
[1758683200689,1.56382463,112220.0,112210.0,0.39595]
[1758683200884,1.92462463,112220.0,112210.0,0.11198958]
[1758683201792,1.52462463,112220.0,112210.0,0.11198958]
[1758683203594,1.52462463,112220.0,112210.0,0.12502958]
[1758683204694,1.55608156,112220.0,112210.0,0.12502958]
[1758683205694,1.19528156,112220.0,112210.0,0.12502958]
[1758683206286,1.46118156,112220.0,112210.0,0.12502958]
[1758683210097,1.46118156,112220.0,112210.0,0.14654958]
[1758683214001,0.64450156,112220.0,112210.0,0.23563228]
[1758683214303,1.46042156,112220.0,112210.0,0.1236427]
[1758683214498,1.46042156,112220.0,112210.0,0.59643228]
[1758683214699,1.46002156,112220.0,112210.0,0.59643228]
[1758683214900,1.37134706,112220.0,112210.0,0.59643228]
[1758683217103,1.08782,112220.0,112210.0,0.76756976]
[1758683217301,0.55542706,112220.0,112210.0,0.76756976]
[1758683217602,1.37086706,112220.0,112210.0,0.76756976]
[1758683218100,1.10496706,112220.0,112210.0,0.76756976]
[1758683218300,1.10536706,112220.0,112210.0,0.76756976]
[1758683218806,1.10496706,112220.0,112210.0,0.4844427]
[1758683219110,1.10536706,112220.0,112210.0,0.76756976]
[1758683220006,1.10536706,112220.0,112210.0,0.4844427]
[1758683220206,1.10536706,112220.0,112210.0,0.76756976]
[1758683222308,1.10536706,112220.0,112210.0,0.87955934]
[1758683223305,1.10536706,112220.0,112210.0,0.76756976]
[1758683224812,1.19444186,112220.0,112210.0,0.76756976]
[1758683225201,1.19444186,112220.0,112210.0,0.4844427]
[1758683225398,1.10536706,112220.0,112210.0,0.4844427]
[1758683225806,1.10536706,112220.0,112210.0,0.64442781]
[1758683228212,1.19444186,112220.0,112210.0,0.64442781]
[1758683228400,0.9113148,112220.0,112210.0,0.64442781]
[1758683228600,1.19444186,112220.0,112210.0,0.64442781]
[1758683231409,1.19444186,112220.0,112210.0,0.4844427]
[1758683236920,1.19444186,112220.0,112210.0,0.64442781]